fUST/lending_fUST_20251002
["ID","MTS","AMOUNT","RATE_DAILY","PERIOD"]
[388761973,1759350663533,-500.0,0.00022465,2]
[388761974,1759350663541,-761.87,0.00022465,2]
[388761975,1759350663550,-500.0,0.00022465,2]
[388761976,1759350663559,-500.0,0.00022465,2]
[388761977,1759350663568,-500.0,0.00022465,2]
[388761978,1759350663577,-725.43,0.00022465,2]
[388761979,1759350663586,-998.2,0.00022465,2]
[388761980,1759350663595,-1361.93,0.00022465,2]
[388761981,1759350663604,-500.0,0.00022465,2]
[388761982,1759350663613,-750.07,0.00022465,2]
[388761983,1759350663622,-500.0,0.00022465,2]
[388761984,1759350663631,-500.0,0.00022465,2]
[388761985,1759350663639,-901.17,0.00022465,2]
[388761986,1759350663648,-2323.21,0.00022465,2]
[388761987,1759350663657,-1205.53,0.00022465,2]
[388761988,1759350663666,-3543.13,0.00022465,2]
[388761989,1759350663675,-500.0,0.00022465,2]
[388761990,1759350663683,-1169.76,0.00022465,2]
[388761991,1759350663692,-500.0,0.00022465,2]
[388761992,1759350663701,-1199.75,0.00022465,2]
[388761993,1759350663711,-300.0,0.00022466,2]
[388761994,1759350663720,-2000.0,0.0002254,2]
[388761995,1759350663729,-900.0,0.00022559,2]
[388761996,1759350663739,-1433.29407168,0.00022576,2]
[388761997,1759350663748,-2351.0,0.00022661,2]
[388761998,1759350663757,-587.0,0.00022661,2]
[388761999,1759350663767,-587.0,0.00022661,2]
[388762000,1759350663776,-800.0,0.00022711,2]
[388762001,1759350663784,-3000.0,0.00022712,2]
[388762002,1759350663793,-393.0,0.00022717,2]
[388762003,1759350663802,-460.0,0.00022719,2]
[388762004,1759350663811,-581.37,0.00022739,2]
[388762005,1759350663820,-685.18,0.00022739,2]
[388762006,1759350663829,-500.0,0.00022739,2]
[388762007,1759350663839,-537.25,0.00022739,2]
[388762008,1759350663848,-500.0,0.00022739,2]
[388762009,1759350663858,-500.0,0.00022739,2]
[388762010,1759350663867,-708.67,0.00022739,2]
[388762011,1759350663876,-500.0,0.00022739,2]
[388762012,1759350663885,-860.49,0.00022739,2]
[388762013,1759350663895,-500.0,0.00022739,2]
[388762014,1759350663904,-205.815392,0.00022739,7]
[388762015,1759350663913,-151.0,0.00022739,7]
[388762016,1759350663922,-452.48,0.00022739,2]
[388762017,1759350663931,-205.815392,0.00022739,7]
[388762018,1759350663939,-205.815392,0.00022739,7]
[388762019,1759350663949,-205.815392,0.00022739,7]
[388762020,1759350663958,-1178.69,0.00022739,2]
[388762021,1759350663967,-500.0,0.00022739,2]
[388762022,1759350663976,-980.49,0.00022739,2]
[388762023,1759350663985,-940.27,0.00022739,2]
[388762024,1759350663994,-2384.47,0.00022739,2]
[388762025,1759350664004,-500.0,0.00022739,2]
[388762026,1759350664014,-500.0,0.00022739,2]
[388762027,1759350664023,-500.0,0.00022739,2]
[388762028,1759350664032,-540.01,0.00022739,2]
[388762029,1759350664042,-1757.96,0.00022739,2]
[388762030,1759350664051,-1028.87,0.00022739,2]
[388762031,1759350664060,-500.0,0.00022739,2]
[388762032,1759350664068,-183.032811,0.00022739,7]
[388762033,1759350664078,-1307.06,0.00022739,2]
[388762034,1759350664087,-708.93,0.00022739,2]
[388762035,1759350664096,-183.032811,0.00022739,7]
[388762036,1759350664104,-639.41,0.00022739,2]
[388762037,1759350664113,-183.032811,0.00022739,7]
[388762038,1759350664123,-183.032811,0.00022739,7]
[388762039,1759350664205,-500.0,0.00022739,2]
[388762040,1759350664221,-564.28,0.00022739,2]
[388762041,1759350664232,-565.66,0.00022739,2]
[388762042,1759350664244,-500.0,0.00022739,2]
[388762043,1759350664254,-657.58,0.00022739,2]
[388762044,1759350664263,-500.0,0.00022739,2]
[388762045,1759350664271,-500.0,0.00022739,2]
[388762046,1759350664282,-467.39,0.00022739,2]
[388762047,1759350664291,-711.7,0.00022739,2]
[388762048,1759350664300,-204.7,0.00022739,2]
[388762049,1759350664311,-1986.09,0.00022739,2]
[388762050,1759350664320,-2161.31,0.00022739,2]
[388762051,1759350664329,-861.25,0.00022739,2]
[388762052,1759350664338,-209.96,0.00022739,2]
[388762053,1759350664347,-623.46,0.00022739,2]
[388762054,1759350664356,-500.0,0.00022739,2]
[388762055,1759350664365,-761.87,0.00022739,2]
[388762056,1759350664374,-575.31,0.00022739,2]
[388762057,1759350664383,-500.0,0.00022739,2]
[388762058,1759350664392,-500.0,0.00022739,2]
[388762059,1759350664400,-725.43,0.00022739,2]
[388762060,1759350664409,-998.2,0.00022739,2]
[388762061,1759350664418,-1361.93,0.00022739,2]
[388762062,1759350664427,-408.97,0.00022739,2]
[388762063,1759350664436,-750.07,0.00022739,2]
[388762064,1759350664446,-500.0,0.00022739,2]
[388762065,1759350664456,-255.63394315,0.00022739,2]
[388762066,1759350664465,-901.17,0.00022739,2]
[388762067,1759350664474,-2323.21,0.00022739,2]
[388762068,1759350664483,-1205.53,0.00022739,2]
[388762069,1759350664492,-3543.13,0.00022739,2]
[388762070,1759350664501,-385.47,0.00022739,2]
[388762071,1759350664510,-1169.76,0.00022739,2]
[388762072,1759350664519,-248.07,0.00022739,2]
[388762073,1759350664528,-1199.75,0.00022739,2]
[388762074,1759350664537,-393.0,0.00022776,2]
[388762075,1759350664547,-2156.0,0.00022794,2]
[388762076,1759350664556,-630.0,0.00022794,2]
[388762077,1759350664564,-1433.29407168,0.00022811,2]
[388762078,1759350664574,-393.0,0.00022829,2]
[388762079,1759350664583,-393.0,0.00022837,2]
[388762080,1759350664592,-393.0,0.00022861,2]
[388762081,1759350664602,-500.0,0.00022864,2]
[388762082,1759350664611,-2351.0,0.00022881,2]
[388762083,1759350664620,-393.0,0.00022933,2]
[388762084,1759350664630,-160.0,0.00023,2]
[388762085,1759350664639,-155.0,0.00023012,2]
[388762086,1759350664648,-1403.84906943,0.00023013,2]
[388762087,1759350664657,-3158.66040622,0.00023013,2]
[388762088,1759350664666,-5609.78088144,0.00023013,2]
[388762089,1759350664676,-581.37,0.00023013,2]
[388762090,1759350664685,-685.18,0.00023013,2]
[388762091,1759350664694,-1780.71285065,0.00023013,2]
[388762092,1759350664704,-4006.60391397,0.00023013,2]
[388762093,1759350664715,-413.61,0.00023013,2]
[388762094,1759350664724,-7115.72855121,0.00023013,2]
[388762095,1759350664734,-537.25,0.00023013,2]
[388762096,1759350664743,-500.0,0.00023013,2]
[388762097,1759350664752,-500.0,0.00023013,2]
[388762098,1759350664761,-708.67,0.00023013,2]
[388762099,1759350664771,-500.0,0.00023013,2]
[388762100,1759350664780,-860.49,0.00023013,2]
[388762101,1759350664789,-500.0,0.00023013,2]
[388762102,1759350664798,-1775.48457774,0.00023013,2]
[388762103,1759350664807,-3990.84545962,0.00023013,2]
[388762104,1759350664816,-1178.69,0.00023013,2]
[388762105,1759350664825,-200.88,0.00023013,2]
[388762106,1759350664834,-980.49,0.00023013,2]
[388762107,1759350664843,-940.27,0.00023013,2]
[388762108,1759350664852,-2384.47,0.00023013,2]
[388762109,1759350664861,-500.0,0.00023013,2]
[388762110,1759350664870,-500.0,0.00023013,2]
[388762111,1759350664879,-500.0,0.00023013,2]
[388762112,1759350664888,-540.01,0.00023013,2]
[388762113,1759350664897,-1757.96,0.00023013,2]
[388762114,1759350664906,-1028.87,0.00023013,2]
[388762115,1759350664917,-460.26,0.00023013,2]
[388762116,1759350664926,-1307.06,0.00023013,2]
[388762117,1759350664936,-708.93,0.00023013,2]
[388762118,1759350664945,-500.0,0.00023013,2]
[388762119,1759350664954,-564.28,0.00023013,2]
[388762120,1759350664963,-565.66,0.00023013,2]
[388762121,1759350664972,-325.4892603,0.00023013,2]
[388762122,1759350664981,-657.58,0.00023013,2]
[388762123,1759350664991,-500.0,0.00023013,2]
[388762124,1759350665000,-500.0,0.00023013,2]
[388762125,1759350665009,-711.7,0.00023013,2]
[388762126,1759350665019,-1986.09,0.00023013,2]
[388762127,1759350665028,-2161.31,0.00023013,2]
[388762128,1759350665037,-861.25,0.00023013,2]
[388762129,1759350665046,-623.46,0.00023013,2]
[388762130,1759350665055,-500.0,0.00023013,2]
[388762131,1759350665064,-761.87,0.00023013,2]
[388762132,1759350665074,-500.0,0.00023013,2]
[388762133,1759350665083,-500.0,0.00023013,2]
[388762134,1759350665092,-1505.616835,0.00023013,7]
[388762135,1759350665101,-1505.616835,0.00023013,7]
[388762136,1759350665111,-1505.616835,0.00023013,7]
[388762137,1759350665120,-725.43,0.00023013,2]
[388762138,1759350665129,-1505.616835,0.00023013,7]
[388762139,1759350665139,-998.2,0.00023013,2]
[388762140,1759350665148,-1361.93,0.00023013,2]
[388762141,1759350665157,-750.07,0.00023013,2]
[388762142,1759350665168,-500.0,0.00023013,2]
[388762143,1759350665177,-901.17,0.00023013,2]
[388762144,1759350665186,-2323.21,0.00023013,2]
[388762145,1759350665196,-1205.53,0.00023013,2]
[388762146,1759350665206,-151.0,0.00023013,7]
[388762147,1759350665215,-205.931712,0.00023013,7]
[388762148,1759350665225,-3543.13,0.00023013,2]
[388762149,1759350665239,-1169.76,0.00023013,2]
[388762150,1759350665249,-1199.75,0.00023013,2]
[388762151,1759350665258,-237.871254,0.00023013,7]
[388762152,1759350665268,-237.871254,0.00023013,7]
[388762153,1759350665278,-237.871254,0.00023013,7]
[388762154,1759350665287,-450.0,0.00023014,2]
[388762155,1759350665296,-151.0,0.00023014,2]
[388762156,1759350665305,-242.46671906,0.00023014,2]
[388762157,1759350665315,-151.0,0.00023014,2]
[388762158,1759350665325,-151.0,0.00023014,2]
[388762159,1759350665334,-151.0,0.00023014,2]
[388762160,1759350665344,-151.0,0.00023014,2]
[388762161,1759350665353,-151.0,0.00023014,2]
[388762162,1759350665362,-151.0,0.00023014,2]
[388762163,1759350665371,-151.0,0.00023014,2]
[388762164,1759350665380,-151.0,0.00023014,2]
[388762165,1759350665390,-151.45944655,0.00023014,2]
[388762166,1759350665399,-151.15484948,0.00023014,2]
[388762167,1759350665408,-500.0,0.00023014,2]
[388762168,1759350665418,-420.0,0.00023014,2]
[388762169,1759350665427,-151.0,0.00023014,2]
[388762170,1759350665436,-500.0,0.00023014,2]
[388762171,1759350665446,-151.0,0.00023014,2]
[388762172,1759350665455,-151.0,0.00023014,2]
[388762173,1759350665465,-151.0,0.00023014,2]
[388762174,1759350665474,-294.98545417,0.00023014,2]
[388762175,1759350665483,-158.67951241,0.00023014,2]
[388762176,1759350665493,-151.0,0.00023014,2]
[388762177,1759350665502,-151.0,0.00023014,2]
[388762178,1759350665511,-151.0,0.00023014,2]
[388762179,1759350665520,-151.0,0.00023014,2]
[388762180,1759350665529,-151.0,0.00023014,2]
[388762181,1759350665539,-151.0,0.00023014,2]
[388762182,1759350665548,-151.0,0.00023014,2]
[388762183,1759350665558,-151.0,0.00023014,2]
[388762184,1759350665567,-151.0,0.00023014,2]
[388762185,1759350665576,-151.0,0.00023014,2]
[388762186,1759350665586,-500.0,0.00023014,2]
[388762187,1759350665595,-151.0,0.00023014,2]
[388762188,1759350665604,-500.0,0.00023014,2]
[388762189,1759350665613,-151.0,0.00023014,2]
[388762190,1759350665623,-151.0,0.00023014,2]
[388762191,1759350665632,-151.0,0.00023014,2]
[388762192,1759350665642,-151.0,0.00023014,2]
[388762193,1759350665652,-154.450076,0.00023015,2]
[388762194,1759350665661,-393.0,0.00023019,2]
[388762195,1759350665670,-979.0,0.00023037,2]
[388762196,1759350665680,-410.0,0.00023037,2]
[388762197,1759350665689,-428.711,0.00023037,2]
[388762198,1759350665698,-151.0,0.00023037,7]
[388762199,1759350665707,-944.69863306,0.00023088,2]
[388762200,1759350665796,-571.51168981,0.000231,3]
[388762201,1759350665805,-293.36416222,0.000231,7]
[388762202,1759350665815,-160.0,0.000231,7]
[388762203,1759350665825,-1200.0,0.00023107,2]
[388762204,1759350665835,-157.12631172,0.00023182,2]
[388762205,1759350665844,-1579.80377057,0.00023199,2]
[388762206,1759350665854,-3500.0,0.0002326,2]
[388762207,1759350665865,-560.0,0.00023267,2]
[388762208,1759350665875,-500.0,0.00023287,2]
[388762209,1759350665884,-581.37,0.00023287,2]
[388762210,1759350665894,-685.18,0.00023287,2]
[388762211,1759350665903,-537.25,0.00023287,2]
[388762212,1759350665913,-500.0,0.00023287,2]
[388762213,1759350665923,-500.0,0.00023287,2]
[388762214,1759350665932,-708.67,0.00023287,2]
[388762215,1759350665941,-224.64,0.00023287,2]
[388762216,1759350665951,-860.49,0.00023287,2]
[388762217,1759350665960,-500.0,0.00023287,2]
[388762218,1759350665970,-1178.69,0.00023287,2]
[388762219,1759350665979,-980.49,0.00023287,2]
[388762220,1759350665989,-940.27,0.00023287,2]
[388762221,1759350665998,-2384.47,0.00023287,2]
[388762222,1759350666009,-500.0,0.00023287,2]
[388762223,1759350666019,-500.0,0.00023287,2]
[388762224,1759350666027,-339.14104162,0.00023287,2]
[388762225,1759350666037,-540.01,0.00023287,2]
[388762226,1759350666046,-1757.96,0.00023287,2]
[388762227,1759350666056,-1028.87,0.00023287,2]
[388762228,1759350666065,-1307.06,0.00023287,2]
[388762229,1759350666075,-708.93,0.00023287,2]
[388762230,1759350666085,-500.0,0.00023287,2]
[388762231,1759350666095,-564.28,0.00023287,2]
[388762232,1759350666104,-565.66,0.00023287,2]
[388762233,1759350666114,-657.58,0.00023287,2]
[388762234,1759350666124,-500.0,0.00023287,2]
[388762235,1759350666133,-500.0,0.00023287,2]
[388762236,1759350666142,-711.7,0.00023287,2]
[388762237,1759350666152,-1986.09,0.00023287,2]
[388762238,1759350666161,-2161.31,0.00023287,2]
[388762239,1759350666170,-861.25,0.00023287,2]
[388762240,1759350666180,-623.46,0.00023287,2]
[388762241,1759350666190,-500.0,0.00023287,2]
[388762242,1759350666199,-761.87,0.00023287,2]
[388762243,1759350666208,-500.0,0.00023287,2]
[388762244,1759350666216,-500.0,0.00023287,2]
[388762245,1759350666226,-725.43,0.00023287,2]
[388762246,1759350666237,-1361.93,0.00023287,2]
[388762247,1759350666247,-998.2,0.00023287,2]
[388762248,1759350666257,-750.07,0.00023287,2]
[388762249,1759350666267,-500.0,0.00023287,2]
[388762250,1759350666276,-901.17,0.00023287,2]
[388762251,1759350666286,-2323.21,0.00023287,2]
[388762252,1759350666295,-1205.53,0.00023287,2]
[388762253,1759350666304,-3543.13,0.00023287,2]
[388762254,1759350666314,-1169.76,0.00023287,2]
[388762255,1759350666323,-1199.75,0.00023287,2]
[388762256,1759350666332,-151.0,0.00023288,2]
[388762257,1759350666343,-151.0,0.00023288,2]
[388762258,1759350666352,-256.58863321,0.00023288,2]
[388762259,1759350666361,-151.0,0.00023288,2]
[388762260,1759350666371,-151.0,0.00023288,2]
[388762261,1759350666380,-151.0,0.00023288,2]
[388762262,1759350666389,-151.0,0.00023288,2]
[388762263,1759350666402,-151.0,0.00023288,2]
[388762264,1759350666411,-604.0,0.00023288,2]
[388762265,1759350666421,-420.0,0.00023288,2]
[388762266,1759350666430,-500.0,0.00023288,2]
[388762267,1759350666439,-151.0,0.00023288,2]
[388762268,1759350666448,-151.0,0.00023288,2]
[388762269,1759350666458,-151.0,0.00023288,2]
[388762270,1759350666468,-151.0,0.00023288,2]
[388762271,1759350666478,-151.0,0.00023288,2]
[388762272,1759350666488,-151.0,0.00023288,2]
[388762273,1759350666498,-151.0,0.00023288,2]
[388762274,1759350666507,-151.0,0.00023288,2]
[388762275,1759350666517,-151.0,0.00023288,2]
[388762276,1759350666528,-500.0,0.00023288,2]
[388762277,1759350666539,-151.0,0.00023288,2]
[388762278,1759350666548,-500.0,0.00023288,2]
[388762279,1759350666557,-151.0,0.00023288,2]
[388762280,1759350666567,-151.0,0.00023288,2]
[388762281,1759350666576,-151.0,0.00023288,2]
[388762282,1759350666585,-151.0,0.00023288,2]
[388762283,1759350666594,-8646.84,0.000233,2]
[388762284,1759350666603,-151.0,0.000233,7]
[388762285,1759350666613,-151.0,0.000233,7]
[388762286,1759350666623,-4000.0,0.00023333,4]
[388762287,1759350666632,-464.0,0.00023335,2]
[388762288,1759350666640,-464.0,0.00023351,2]
[388762289,1759350666651,-1433.29407168,0.00023364,2]
[388762290,1759350666660,-5000.0,0.00023403,2]
[388762291,1759350666672,-154.450076,0.00023404,4]
[388762292,1759350666683,-1000.0,0.00023412,2]
[388762293,1759350666692,-464.0,0.00023441,2]
[388762294,1759350666701,-800.0,0.00023443,2]
[388762295,1759350666711,-464.0,0.00023498,2]
[388762296,1759350666720,-1000.0,0.000235,2]
[388762297,1759350666730,-393.0,0.00023553,2]
[388762298,1759350666739,-581.37,0.00023561,2]
[388762299,1759350666749,-685.18,0.00023561,2]
[388762300,1759350666758,-537.25,0.00023561,2]
[388762301,1759350666768,-500.0,0.00023561,2]
[388762302,1759350666777,-500.0,0.00023561,2]
[388762303,1759350666786,-708.67,0.00023561,2]
[388762304,1759350666795,-860.49,0.00023561,2]
[388762305,1759350666804,-500.0,0.00023561,2]
[388762306,1759350666813,-1178.69,0.00023561,2]
[388762307,1759350666822,-980.49,0.00023561,2]
[388762308,1759350666832,-940.27,0.00023561,2]
[388762309,1759350666841,-2384.47,0.00023561,2]
[388762310,1759350666850,-500.0,0.00023561,2]
[388762311,1759350666859,-500.0,0.00023561,2]
[388762312,1759350666868,-540.01,0.00023561,2]
[388762313,1759350666877,-1757.96,0.00023561,2]
[388762314,1759350666886,-1028.87,0.00023561,2]
[388762315,1759350666895,-1307.06,0.00023561,2]
[388762316,1759350666904,-708.93,0.00023561,2]
[388762317,1759350666913,-500.0,0.00023561,2]
[388762318,1759350666923,-564.28,0.00023561,2]
[388762319,1759350666932,-565.66,0.00023561,2]
[388762320,1759350666941,-221.382581,0.00023561,7]
[388762321,1759350666951,-221.382581,0.00023561,7]
[388762322,1759350666960,-221.382581,0.00023561,7]
[388762323,1759350666970,-221.382581,0.00023561,7]
[388762324,1759350666979,-657.58,0.00023561,2]
[388762325,1759350666991,-500.0,0.00023561,2]
[388762326,1759350667000,-151.0,0.00023561,7]
[388762327,1759350667010,-151.0,0.00023561,7]
[388762328,1759350667019,-500.0,0.00023561,2]
[388762329,1759350667028,-151.0,0.00023561,7]
[388762330,1759350667037,-151.0,0.00023561,7]
[388762331,1759350667046,-151.0,0.00023561,7]
[388762332,1759350667055,-711.7,0.00023561,2]
[388762333,1759350667065,-151.0,0.00023561,7]
[388762334,1759350667074,-1986.09,0.00023561,2]
[388762335,1759350667084,-2161.31,0.00023561,2]
[388762336,1759350667093,-861.25,0.00023561,2]
[388762337,1759350667103,-623.46,0.00023561,2]
[388762338,1759350667112,-500.0,0.00023561,2]
[388762339,1759350667121,-761.87,0.00023561,2]
[388762340,1759350667130,-500.0,0.00023561,2]
[388762341,1759350667139,-500.0,0.00023561,2]
[388762342,1759350667148,-725.43,0.00023561,2]
[388762343,1759350667157,-998.2,0.00023561,2]
[388762344,1759350667166,-1361.93,0.00023561,2]
[388762345,1759350667176,-750.07,0.00023561,2]
[388762346,1759350667186,-500.0,0.00023561,2]
[388762347,1759350667271,-901.17,0.00023561,2]
[388762348,1759350667283,-2323.21,0.00023561,2]
[388762349,1759350667292,-1205.53,0.00023561,2]
[388762350,1759350667302,-3543.13,0.00023561,2]
[388762351,1759350667311,-1169.76,0.00023561,2]
[388762352,1759350667321,-1199.75,0.00023561,2]
[388762353,1759350667330,-373.1397124,0.00023562,2]
[388762354,1759350667340,-151.0,0.00023562,2]
[388762355,1759350667349,-151.0,0.00023562,2]
[388762356,1759350667359,-198.0,0.00023562,2]
[388762357,1759350667368,-151.0,0.00023562,2]
[388762358,1759350667377,-151.0,0.00023562,2]
[388762359,1759350667386,-420.0,0.00023562,2]
[388762360,1759350667395,-580.14159216,0.00023562,2]
[388762361,1759350667404,-151.0,0.00023562,2]
[388762362,1759350667414,-151.0,0.00023562,2]
[388762363,1759350667423,-151.0,0.00023562,2]
[388762364,1759350667433,-151.0,0.00023562,2]
[388762365,1759350667443,-151.0,0.00023562,2]
[388762366,1759350667453,-151.0,0.00023562,2]
[388762367,1759350667464,-151.0,0.00023562,2]
[388762368,1759350667473,-500.0,0.00023562,2]
[388762369,1759350667483,-253.66502633,0.00023562,2]
[388762370,1759350667492,-500.0,0.00023562,2]
[388762371,1759350667501,-151.0,0.00023562,2]
[388762372,1759350667511,-151.0,0.00023562,2]
[388762373,1759350667520,-151.0,0.00023562,2]
[388762374,1759350667530,-464.0,0.00023579,2]
[388762375,1759350667539,-1433.29407168,0.00023591,2]
[388762376,1759350667549,-2133.9118574,0.00023601,2]
[388762377,1759350667559,-393.0,0.00023636,2]
[388762378,1759350667568,-205.0,0.00023644,10]
[388762379,1759350667578,-393.0,0.00023644,2]
[388762380,1759350667587,-393.0,0.00023645,2]
[388762381,1759350667598,-1500.0,0.00023655,2]
[388762382,1759350667607,-800.0,0.00023782,2]
[388762383,1759350667618,-2985.56009375,0.00023808,2]
[388762384,1759350667629,-660.0,0.00023815,2]
[388762385,1759350667639,-581.37,0.00023835,2]
[388762386,1759350667648,-685.18,0.00023835,2]
[388762387,1759350667658,-537.25,0.00023835,2]
[388762388,1759350667668,-500.0,0.00023835,2]
[388762389,1759350667677,-231.35292072,0.00023835,2]
[388762390,1759350667687,-708.67,0.00023835,2]
[388762391,1759350667697,-12500.0,0.00023835,7]
[388762392,1759350667707,-860.49,0.00023835,2]
[388762393,1759350667716,-500.0,0.00023835,2]
[388762394,1759350667727,-1178.69,0.00023835,2]
[388762395,1759350667737,-980.49,0.00023835,2]
[388762396,1759350667748,-151.0,0.00023835,7]
[388762397,1759350667757,-940.27,0.00023835,2]
[388762398,1759350667768,-2384.47,0.00023835,2]
[388762399,1759350667777,-500.0,0.00023835,2]
[388762400,1759350667787,-500.0,0.00023835,2]
[388762401,1759350667797,-540.01,0.00023835,2]
[388762402,1759350667806,-1757.96,0.00023835,2]
[388762403,1759350667816,-1028.87,0.00023835,2]
[388762404,1759350667826,-1307.06,0.00023835,2]
[388762405,1759350667836,-708.93,0.00023835,2]
[388762406,1759350667845,-500.0,0.00023835,2]
[388762407,1759350667855,-564.28,0.00023835,2]
[388762408,1759350667865,-565.66,0.00023835,2]
[388762409,1759350667875,-657.58,0.00023835,2]
[388762410,1759350667885,-500.0,0.00023835,2]
[388762411,1759350667894,-500.0,0.00023835,2]
[388762412,1759350667904,-711.7,0.00023835,2]
[388762413,1759350667914,-1986.09,0.00023835,2]
[388762414,1759350667923,-2161.31,0.00023835,2]
[388762415,1759350667932,-861.25,0.00023835,2]
[388762416,1759350667943,-623.46,0.00023835,2]
[388762417,1759350667953,-500.0,0.00023835,2]
[388762418,1759350667962,-761.87,0.00023835,2]
[388762419,1759350667972,-500.0,0.00023835,2]
[388762420,1759350667981,-500.0,0.00023835,2]
[388762421,1759350667991,-725.43,0.00023835,2]
[388762422,1759350668000,-1361.93,0.00023835,2]
[388762423,1759350668010,-998.2,0.00023835,2]
[388762424,1759350668019,-750.07,0.00023835,2]
[388762425,1759350668029,-500.0,0.00023835,2]
[388762426,1759350668038,-901.17,0.00023835,2]
[388762427,1759350668049,-2323.21,0.00023835,2]
[388762428,1759350668059,-1205.53,0.00023835,2]
[388762429,1759350668068,-3543.13,0.00023835,2]
[388762430,1759350668079,-1169.76,0.00023835,2]
[388762431,1759350668089,-1199.75,0.00023835,2]
[388762432,1759350668098,-151.0,0.00023836,2]
[388762433,1759350668107,-151.0,0.00023836,2]
[388762434,1759350668117,-151.0,0.00023836,2]
[388762435,1759350668128,-151.0,0.00023836,2]
[388762436,1759350668137,-420.0,0.00023836,2]
[388762437,1759350668146,-151.0,0.00023836,2]
[388762438,1759350668156,-218.67120861,0.00023836,2]
[388762439,1759350668165,-151.0,0.00023836,2]
[388762440,1759350668175,-198.0,0.00023836,2]
[388762441,1759350668186,-151.0,0.00023836,2]
[388762442,1759350668195,-151.0,0.00023836,2]
[388762443,1759350668206,-151.0,0.00023836,2]
[388762444,1759350668215,-198.0,0.00023836,2]
[388762445,1759350668224,-1433.29407168,0.00023911,2]
[388762446,1759350668236,-393.0,0.00023944,2]
[388762447,1759350668248,-1712.43265204,0.00024,2]
[388762448,1759350668257,-163.4660248,0.00024,2]
[388762449,1759350668266,-459.15670068,0.00024,2]
[388762450,1759350668277,-3000.0,0.000241,7]
[388762451,1759350668287,-160.0,0.00024109,7]
[388762452,1759350668296,-200.0,0.00024109,2]
[388762453,1759350668306,-200.0,0.00024109,2]
[388762454,1759350668316,-200.0,0.00024109,2]
[388762455,1759350668326,-200.0,0.00024109,2]
[388762456,1759350668336,-200.0,0.00024109,2]
[388762457,1759350668346,-200.0,0.00024109,2]
[388762458,1759350668355,-183.2739459,0.00024109,2]
[388762459,1759350668365,-581.37,0.00024109,2]
[388762460,1759350668374,-685.18,0.00024109,2]
[388762461,1759350668383,-537.25,0.00024109,2]
[388762462,1759350668393,-708.67,0.00024109,2]
[388762463,1759350668403,-860.49,0.00024109,2]
[388762464,1759350668412,-500.0,0.00024109,2]
[388762465,1759350668422,-1178.69,0.00024109,2]
[388762466,1759350668431,-980.49,0.00024109,2]
[388762467,1759350668441,-940.27,0.00024109,2]
[388762468,1759350668450,-2384.47,0.00024109,2]
[388762469,1759350668460,-500.0,0.00024109,2]
[388762470,1759350668468,-500.0,0.00024109,2]
[388762471,1759350668477,-540.01,0.00024109,2]
[388762472,1759350668487,-1757.96,0.00024109,2]